lending/lending_fUSD_20240417
["ID","MTS","AMOUNT","RATE_DAILY","PERIOD"]
[322815859,1713358244214,-4579.07236194,0.00018237,2]
[322815860,1713358244225,-2402.48756872,0.00018254,2]
[322815861,1713358244235,-1059.74600206,0.00018254,2]
[322815862,1713358244244,-155.0,0.00018254,2]
[322815863,1713358244254,-20534.02773467,0.00018255,2]
[322815864,1713358244264,-500.0,0.00018256,2]
[322815865,1713358244274,-465.531,0.00018256,2]
[322815866,1713358244284,-63788.2859,0.00018256,2]
[322815867,1713358244293,-5775.73,0.00018256,2]
[322815868,1713358244303,-600.46,0.00018256,2]
[322815869,1713358244312,-499.99,0.00018256,2]
[322815870,1713358244322,-1266.8679,0.00018256,2]
[322815871,1713358244331,-20466.2094,0.00018256,2]
[322815872,1713358244340,-556.0,0.00018256,2]
[322815873,1713358244350,-1043.4825674,0.00018256,2]
[322815874,1713358244361,-150.0,0.00018266,2]
[322815875,1713358244370,-1360.0,0.000183,2]
[322815876,1713358244379,-158.37,0.00018333,2]
[322815877,1713358244389,-155.9469953,0.00018355,2]
[322815878,1713358244398,-387.71152786,0.00018355,2]
[322815879,1713358244407,-254.832648,0.00018355,2]
[322815880,1713358244416,-72983.01891598,0.00018356,2]
[322815881,1713358244543,-806.1100004,0.00018356,2]
[322815883,1713358244556,-686.000002,0.00018356,2]
[322815885,1713358244568,-1473.47697837,0.00018356,2]
[322815887,1713358244579,-8095.4174114,0.00018356,2]
[322815916,1713358246187,-638.07929854,0.00018355,2]
[322815918,1713358246199,-137.34375717,0.00018355,2]
[322815920,1713358246211,-11204.05515038,0.00018356,2]
[322815926,1713358246251,-18229.60271524,0.00018356,2]
[322815928,1713358246265,-30369.56297379,0.00018356,2]
[322815930,1713358246278,-8046.44730634,0.00018356,2]
[322815938,1713358246367,-354.21,0.00018356,2]
[322815939,1713358246380,-378.79104645,0.00018356,2]
[322815940,1713358246425,-282.40430229,0.00018356,2]
[322815941,1713358246484,-297.20900393,0.00018356,2]
[322815942,1713358246496,-750.52233814,0.00018356,2]
[322815943,1713358246544,-4059.36205641,0.00018356,2]
[322815944,1713358246556,-1558.5,0.00018356,2]
[322815945,1713358246567,-124660.35114228,0.00018356,2]
[322815946,1713358267966,258.93315416,0.000176,2]
[322815947,1713358267989,3741.06684584,0.000176,2]
[322815948,1713358271815,198.00114016,0.00017399,2]
[322815949,1713358272120,60.932014,0.00017362,2]
[322815950,1713358272149,137.06912616,0.00017362,2]
[322815951,1713358272458,198.00114016,0.00017396,2]
[322815952,1713358272707,198.00114016,0.00017343,2]
[322815953,1713358273010,198.00114016,0.00017393,2]
[322815954,1713358273367,198.00114016,0.00017374,2]
[322815955,1713358273662,198.00114016,0.00017397,2]
[322815956,1713358273976,198.00114016,0.00017361,2]
[322815957,1713358274343,198.00114016,0.00017355,2]
[322815958,1713358301493,2476.92289272,0.00017381,2]
[322815959,1713358301518,4000.0,0.00017381,2]
[322815960,1713358301543,4000.0,0.00017381,2]
[322815961,1713358301566,4000.0,0.00017381,2]
[322815962,1713358301591,4000.0,0.00017381,2]
[322815963,1713358301616,4000.0,0.00017381,2]
[322815964,1713358301640,3157.66027549,0.00017381,2]
[322815965,1713358301754,842.33972451,0.00017384,2]
[322815966,1713358301777,4000.0,0.00017384,2]
[322815967,1713358301800,4000.0,0.00017384,2]
[322815968,1713358301823,4000.0,0.00017384,2]
[322815969,1713358301845,4000.0,0.00017384,2]
[322815973,1713358552736,25000.0,0.00028,30]
[322815976,1713358605846,210.56,0.00015129,2]
[322815981,1713358617838,25000.0,0.00028,30]
[322815983,1713358704802,25000.0,0.00028,30]
[322815989,1713359019262,-500.0,0.00031867,30]
[322815990,1713359019286,-500.0,0.00031867,30]
[322815991,1713359019310,-277.0,0.00031867,30]
[322815992,1713359019335,-506.30407512,0.00031867,30]
[322815993,1713359019362,-336.59252976,0.00031867,120]
[322815994,1713359019388,-500.0,0.00031867,30]
[322815995,1713359019416,-511.33988425,0.00031867,30]
[322815996,1713359019443,-506.3181158,0.00031867,30]
[322815997,1713359019468,-500.0,0.00031867,30]
[322815998,1713359019493,-500.0,0.00031867,30]
[322815999,1713359021016,-502.07074351,0.00031867,30]
[322816000,1713359021044,-211.61558923,0.00031867,30]
[322816001,1713359021069,-504.37157228,0.00031867,30]
[322816002,1713359021094,-500.0,0.00031867,30]
[322816003,1713359021126,-399.33064841,0.00031867,30]
[322816004,1713359021156,-500.0,0.00031867,30]
[322816005,1713359021184,-503.2848913,0.00031867,30]
[322816006,1713359021211,-196.00836917,0.00031867,30]
[322816007,1713359021240,-500.0,0.00031867,30]
[322816008,1713359021269,-500.0,0.00031867,30]
[322816009,1713359021296,-500.0,0.00031867,30]
[322816010,1713359021327,-502.33577335,0.00031867,30]
[322816011,1713359021355,-513.0002897,0.00031867,30]
[322816012,1713359021384,-500.0,0.00031867,30]
[322816013,1713359021416,-605.32853105,0.00031867,30]
[322816014,1713359021444,-506.59839431,0.00031867,30]
[322816015,1713359021472,-500.86058806,0.00031867,30]
[322816016,1713359021499,-506.2035238,0.00031867,30]
[322816017,1713359021527,-509.33386629,0.00031867,30]
[322816018,1713359021555,-506.88764474,0.00031867,30]
[322816019,1713359021583,-507.73990637,0.00031867,30]
[322816020,1713359021610,-448.18786915,0.00031867,30]
[322816021,1713359021636,-500.0,0.00031867,30]
[322816022,1713359021663,-506.84876657,0.00031867,30]
[322816023,1713359021689,-500.0,0.00031867,30]
[322816024,1713359021716,-288.23483485,0.00031867,30]
[322816025,1713359021743,-245.34144648,0.00031867,30]
[322816026,1713359021770,-500.0,0.00031867,30]
[322816027,1713359021797,-500.0,0.00031867,30]
[322816028,1713359021824,-500.0,0.00031867,30]
[322816029,1713359021850,-529.29,0.00031867,30]
[322816030,1713359021876,-500.0,0.00031867,30]
[322816031,1713359021903,-503.66240231,0.00031867,30]
[322816032,1713359021929,-500.0,0.00031867,30]
[322816033,1713359021956,-500.0,0.00031867,30]
[322816034,1713359021983,-500.0,0.00031867,30]
[322816035,1713359022011,-500.0,0.00031867,30]
[322816036,1713359022037,-500.0,0.00031867,30]
[322816037,1713359022064,-500.0,0.00031867,30]
[322816038,1713359022092,-602.22,0.00031867,30]
[322816039,1713359022118,-593.34969964,0.00031867,30]
[322816040,1713359022147,-501.91804109,0.00031867,30]
[322816041,1713359022181,-500.0,0.00031867,30]
[322816042,1713359022209,-500.0,0.00031867,30]
[322816043,1713359022237,-500.0,0.00031867,30]
[322816044,1713359022265,-500.0,0.00031867,30]
[322816045,1713359022295,-500.0,0.00031867,30]
[322816046,1713359022321,-500.0,0.00031867,30]
[322816047,1713359022348,-500.0,0.00031867,30]
[322816048,1713359022376,-500.0,0.00031867,30]
[322816049,1713359022407,-500.0,0.00031867,30]
[322816050,1713359022437,-502.56866681,0.00031867,30]
[322816051,1713359022465,-500.0,0.00031867,30]
[322816052,1713359022494,-252.4863701,0.00031867,30]
[322816053,1713359022522,-500.0,0.00031867,30]
[322816054,1713359022551,-500.0,0.00031867,30]
[322816055,1713359022578,-500.0,0.00031867,30]
[322816056,1713359022605,-508.41018981,0.00031867,30]
[322816057,1713359022633,-500.0,0.00031867,30]
[322816058,1713359022660,-520.55648701,0.00031867,30]
[322816059,1713359022687,-214.52272705,0.00031867,30]
[322816060,1713359022925,-500.0,0.00031867,30]
[322816061,1713359022956,-509.87297085,0.00031867,30]
[322816062,1713359022984,-416.77536476,0.00031867,30]
[322816063,1713359023013,-500.0,0.00031867,30]
[322816064,1713359023042,-516.39506109,0.00031867,30]
[322816065,1713359023070,-255.90798274,0.00031867,30]
[322816066,1713359023099,-504.0451034,0.00031867,30]
[322816067,1713359023129,-500.0,0.00031867,30]
[322816068,1713359023158,-500.0,0.00031867,30]
[322816069,1713359023185,-500.0,0.00031867,30]
[322816070,1713359023214,-511.3299196,0.00031867,30]
[322816071,1713359023242,-500.0,0.00031867,30]
[322816072,1713359023272,-511.60467652,0.00031867,30]
[322816073,1713359023301,-304.71683212,0.00031867,30]
[322816074,1713359023332,-500.0,0.00031867,30]
[322816075,1713359023359,-500.0,0.00031867,30]
[322816076,1713359023390,-336.68,0.00031867,30]
[322816077,1713359023420,-513.40493142,0.00031867,30]
[322816078,1713359023449,-248.23943654,0.00031867,30]
[322816079,1713359023478,-500.0,0.00031867,30]
[322816080,1713359023510,-500.0,0.00031867,30]
[322816081,1713359023541,-506.55608492,0.00031867,30]
[322816082,1713359023571,-500.0,0.00031867,30]
[322816083,1713359023602,-647.05972941,0.00031867,30]
[322816084,1713359023631,-507.03091983,0.00031867,30]
[322816085,1713359023660,-504.24845429,0.00031867,30]
[322816086,1713359023690,-502.20804989,0.00031867,30]
[322816087,1713359023718,-500.0,0.00031867,30]
[322816088,1713359023748,-507.05161583,0.00031867,30]
[322816089,1713359023781,-500.0,0.00031867,30]
[322816090,1713359023809,-500.0,0.00031867,30]
[322816091,1713359023837,-597.42,0.00031867,30]
[322816092,1713359023864,-275.5,0.00031867,30]
[322816093,1713359023892,-500.0,0.00031867,30]
[322816094,1713359023919,-600.81001533,0.00031867,30]
[322816095,1713359023947,-500.0,0.00031867,30]
[322816096,1713359023974,-500.0,0.00031867,30]
[322816097,1713359024001,-310.78231128,0.00031867,30]
[322816098,1713359024029,-499.81888234,0.00031867,30]
[322816099,1713359024056,-513.97353293,0.00031867,30]
[322816100,1713359024082,-508.93230284,0.00031867,30]
[322816101,1713359024107,-500.0,0.00031867,30]
[322816102,1713359024133,-201.81635714,0.00031867,30]
[322816103,1713359024159,-500.0,0.00031867,30]
[322816104,1713359024185,-511.38418905,0.00031867,30]
[322816105,1713359024212,-505.46439138,0.00031867,30]
[322816106,1713359024238,-500.0,0.00031867,30]
[322816107,1713359024266,-500.0,0.00031867,30]
[322816108,1713359024292,-500.0,0.00031867,30]
[322816109,1713359024319,-500.0,0.00031867,30]
[322816110,1713359024345,-500.0,0.00031867,30]
[322816111,1713359024372,-500.0,0.00031867,30]
[322816112,1713359024398,-474.99160413,0.00031867,30]
[322816113,1713359024430,-508.64112299,0.00031867,30]
[322816114,1713359024457,-511.3416808,0.00031867,30]
[322816115,1713359024483,-500.0,0.00031867,30]
[322816116,1713359024517,-508.19172457,0.00031867,30]
[322816117,1713359024544,-500.0,0.00031867,30]
[322816118,1713359024572,-500.0,0.00031867,30]
[322816119,1713359024598,-503.85562053,0.00031867,30]
[322816120,1713359024625,-500.0,0.00031867,30]
[322816121,1713359024653,-510.20953497,0.00031867,30]
[322816122,1713359024680,-500.0,0.00031867,30]
[322816123,1713359024706,-500.0,0.00031867,30]
[322816124,1713359024733,-500.0,0.00031867,30]
[322816125,1713359024760,-521.57310159,0.00031867,30]
[322816126,1713359024788,-504.48538038,0.00031867,30]
[322816127,1713359024816,-546.34642783,0.00031867,30]
[322816128,1713359024843,-503.99088616,0.00031867,30]
[322816129,1713359024870,-500.0,0.00031867,30]
[322816130,1713359024897,-500.0,0.00031867,30]
[322816131,1713359024924,-508.46999986,0.00031867,30]
[322816132,1713359024950,-500.0,0.00031867,30]
[322816133,1713359024977,-500.0,0.00031867,30]
[322816134,1713359025004,-500.0,0.00031867,30]
[322816135,1713359025034,-510.16304851,0.00031867,30]
[322816136,1713359025061,-509.31584106,0.00031867,30]
[322816137,1713359025087,-522.91438686,0.00031867,30]
[322816138,1713359025114,-510.25243382,0.00031867,30]
[322816139,1713359025141,-500.0,0.00031867,30]
[322816140,1713359025167,-407.87863751,0.00031867,30]
[322816141,1713359025194,-503.90341719,0.00031867,30]
[322816142,1713359025221,-500.0,0.00031867,30]
[322816143,1713359025247,-500.0,0.00031867,30]
[322816144,1713359025274,-500.0,0.00031867,30]
[322816145,1713359025301,-500.0,0.00031867,30]
[322816146,1713359025329,-500.0,0.00031867,30]
[322816147,1713359025356,-500.0,0.00031867,30]
[322816148,1713359025383,-500.0,0.00031867,30]
[322816149,1713359025411,-295.94783695,0.00031867,30]
[322816150,1713359025439,-500.0,0.00031867,30]
[322816151,1713359025465,-500.9134427,0.00031867,30]
[322816152,1713359025492,-500.0,0.00031867,30]
[322816153,1713359025522,-503.29491726,0.00031867,30]
[322816154,1713359025549,-500.0,0.00031867,30]
[322816155,1713359025576,-500.0,0.00031867,30]
[322816156,1713359025603,-296.79678312,0.00031867,30]
[322816157,1713359025629,-505.07865784,0.00031867,30]
[322816158,1713359025655,-505.67364535,0.00031867,30]
[322816159,1713359025682,-509.36200936,0.00031867,30]
[322816160,1713359025712,-504.08152785,0.00031867,30]
[322816161,1713359025739,-500.0,0.00031867,30]
[322816162,1713359025767,-503.22078883,0.00031867,30]
[322816163,1713359025794,-503.24756319,0.00031867,30]
[322816164,1713359025964,-500.0,0.00031867,30]
[322816165,1713359026005,-619.39543967,0.00031867,30]
[322816166,1713359026032,-500.0,0.00031867,30]
[322816167,1713359026058,-304.98310689,0.00031867,30]
[322816168,1713359026085,-509.56565403,0.00031867,30]
[322816169,1713359026112,-504.27282848,0.00031867,30]
[322816170,1713359026138,-500.0,0.00031867,30]
[322816171,1713359026165,-504.70547014,0.00031867,30]
[322816172,1713359026190,-500.0,0.00031867,30]
[322816173,1713359026217,-507.4056515,0.00031867,30]
[322816174,1713359026243,-503.10845008,0.00031867,30]
[322816175,1713359026271,-500.0,0.00031867,30]
[322816176,1713359026297,-510.92285365,0.00031867,30]
[322816177,1713359026324,-500.0,0.00031867,30]
[322816178,1713359026351,-500.0,0.00031867,30]
[322816179,1713359026380,-529.76076348,0.00031867,30]
[322816180,1713359026409,-504.21305817,0.00031867,30]
[322816181,1713359026436,-504.43281069,0.00031867,30]
[322816182,1713359026464,-507.7096492,0.00031867,30]
[322816183,1713359026490,-504.32563256,0.00031867,30]
[322816184,1713359026517,-507.90467965,0.00031867,30]
[322816185,1713359026543,-500.0,0.00031867,30]
[322816186,1713359026570,-500.0,0.00031867,30]
[322816187,1713359026597,-503.61971541,0.00031867,30]
[322816188,1713359026624,-517.57170549,0.00031867,30]
[322816189,1713359026650,-500.0,0.00031867,30]
[322816190,1713359026677,-500.0,0.00031867,30]
[322816191,1713359026705,-500.0,0.00031867,30]
[322816192,1713359026731,-509.56282717,0.00031867,30]
[322816193,1713359026758,-508.2754863,0.00031867,30]
[322816194,1713359026786,-543.77456682,0.00031867,30]
[322816195,1713359026814,-500.0,0.00031867,30]
[322816196,1713359026841,-507.89416497,0.00031867,30]
[322816197,1713359026868,-500.0,0.00031867,30]
[322816198,1713359026896,-500.0,0.00031867,30]
[322816199,1713359026922,-536.78946358,0.00031867,30]
[322816200,1713359026949,-500.0,0.00031867,30]
[322816201,1713359026976,-517.53706116,0.00031867,30]
[322816202,1713359027002,-502.79924939,0.00031867,30]
[322816203,1713359027030,-506.44711832,0.00031867,30]
[322816204,1713359027057,-500.0,0.00031867,30]
[322816205,1713359027083,-500.0,0.00031867,30]
[322816206,1713359027112,-511.7789161,0.00031867,30]
[322816207,1713359027141,-509.59790183,0.00031867,30]
[322816208,1713359027169,-507.75036354,0.00031867,30]
[322816209,1713359027197,-508.86132137,0.00031867,30]
[322816210,1713359027229,-502.520028,0.00031867,30]
[322816211,1713359027258,-500.0,0.00031867,30]
[322816212,1713359027288,-500.0,0.00031867,30]
[322816213,1713359027316,-522.20124936,0.00031867,30]
[322816214,1713359027344,-500.0,0.00031867,30]
[322816215,1713359027373,-504.93176146,0.00031867,30]
[322816216,1713359027400,-502.52892861,0.00031867,30]
[322816217,1713359027432,-500.0,0.00031867,30]
[322816218,1713359027461,-500.0,0.00031867,30]
[322816219,1713359027491,-502.14577322,0.00031867,30]
[322816220,1713359027522,-502.8772247,0.00031867,30]
[322816221,1713359027551,-531.83527293,0.00031867,30]
[322816222,1713359027578,-500.0,0.00031867,30]
[322816223,1713359027606,-505.40308732,0.00031867,30]
[322816224,1713359027634,-500.0,0.00031867,30]
[322816225,1713359027662,-509.0135369,0.00031867,30]
[322816226,1713359027690,-504.69572827,0.00031867,30]
[322816227,1713359027719,-509.93408571,0.00031867,30]
[322816228,1713359027749,-500.0,0.00031867,30]
[322816229,1713359027780,-500.0,0.00031867,30]
[322816230,1713359027809,-500.0,0.00031867,30]
[322816231,1713359027843,-191.04476428,0.00031867,30]
[322816232,1713359027872,-503.74966311,0.00031867,30]
[322816233,1713359027903,-502.28739161,0.00031867,30]
[322816234,1713359027933,-502.13056965,0.00031867,30]
[322816235,1713359027962,-500.0,0.00031867,30]
[322816236,1713359027991,-500.0,0.00031867,30]
[322816237,1713359028021,-515.44784734,0.00031867,30]
[322816238,1713359028050,-500.0,0.00031867,30]
[322816239,1713359028079,-553.74662866,0.00031867,30]
[322816240,1713359028108,-500.0,0.00031867,30]
[322816241,1713359028139,-503.97366217,0.00031867,30]
[322816242,1713359028169,-500.0,0.00031867,30]
[322816243,1713359028197,-517.85016904,0.00031867,30]
[322816244,1713359028226,-500.0,0.00031867,30]
[322816245,1713359028255,-573.24906666,0.00031867,30]
[322816246,1713359028286,-501.96484758,0.00031867,30]
[322816247,1713359028315,-500.0,0.00031867,30]
[322816248,1713359028343,-500.0,0.00031867,30]
[322816249,1713359028372,-501.75305087,0.00031867,30]
[322816250,1713359028401,-330.54584826,0.00031867,30]
[322816251,1713359028433,-503.43139644,0.00031867,30]
[322816252,1713359028462,-500.0,0.00031867,30]
[322816253,1713359028489,-522.63647815,0.00031867,30]
[322816254,1713359028519,-500.0,0.00031867,30]
[322816255,1713359028549,-500.0,0.00031867,30]
[322816256,1713359028578,-517.7370049,0.00031867,30]
[322816257,1713359028606,-500.0,0.00031867,30]
[322816258,1713359028633,-544.95369277,0.00031867,30]
[322816259,1713359028661,-254.93722591,0.00031867,30]
[322816260,1713359028690,-506.89010242,0.00031867,30]
[322816261,1713359028718,-500.0,0.00031867,30]
[322816262,1713359028748,-517.71626054,0.00031867,30]
[322816263,1713359028778,-506.72517085,0.00031867,30]
[322816264,1713359028807,-500.0,0.00031867,30]
[322816265,1713359028834,-494.5577951,0.00031867,30]
[322816266,1713359028862,-500.0,0.00031867,30]
[322816267,1713359028907,-500.0,0.00031867,30]
[322816268,1713359028934,-500.0,0.00031867,30]
[322816269,1713359029114,-500.0,0.00031867,30]
[322816270,1713359029142,-512.51131032,0.00031867,30]
[322816271,1713359029171,-500.0,0.00031867,30]
[322816272,1713359029197,-277.9221304,0.00031867,30]
[322816273,1713359029224,-500.0,0.00031867,30]
[322816274,1713359029251,-500.0,0.00031867,30]
[322816275,1713359029278,-168.74899154,0.00031867,30]
[322816276,1713359029304,-521.29329962,0.00031867,30]
[322816277,1713359029330,-410.28206412,0.00031867,30]
[322816278,1713359029357,-500.0,0.00031867,30]
[322816279,1713359029384,-500.0,0.00031867,30]
[322816280,1713359029413,-500.0,0.00031867,30]
[322816281,1713359029439,-513.62143671,0.00031867,30]
[322816282,1713359029467,-500.0,0.00031867,30]
[322816283,1713359029494,-500.0,0.00031867,30]
[322816284,1713359029522,-500.0,0.00031867,30]
[322816285,1713359029553,-504.71829915,0.00031867,30]
[322816286,1713359029581,-505.6633677,0.00031867,30]
[322816287,1713359029609,-500.98444446,0.00031867,30]
[322816288,1713359029636,-508.03555248,0.00031867,30]
[322816289,1713359029663,-500.0,0.00031867,30]
[322816290,1713359029690,-500.0,0.00031867,30]
[322816291,1713359029718,-226.98717284,0.00031867,30]
[322816292,1713359029746,-506.00160467,0.00031867,30]
[322816293,1713359029775,-500.0,0.00031867,30]
[322816294,1713359029802,-500.0,0.00031867,30]
[322816295,1713359029831,-500.0,0.00031867,30]
[322816296,1713359029859,-505.38302928,0.00031867,30]
[322816297,1713359029887,-500.0,0.00031867,30]
[322816298,1713359029917,-500.0,0.00031867,30]
[322816299,1713359029946,-500.0,0.00031867,30]
[322816300,1713359029975,-500.0,0.00031867,30]
[322816301,1713359030002,-241.52385881,0.00031867,30]
[322816302,1713359030030,-500.0,0.00031867,30]
[322816303,1713359030057,-505.04106042,0.00031867,30]
[322816304,1713359030085,-500.0,0.00031867,30]
[322816305,1713359030115,-500.0,0.00031867,30]
[322816306,1713359030142,-522.43605028,0.00031867,30]
[322816307,1713359030169,-1961.23179193,0.00031867,30]
[322816308,1713359030196,-506.14317696,0.00031867,30]
[322816309,1713359030225,-506.53595697,0.00031867,30]
[322816310,1713359030252,-509.75025883,0.00031867,30]
[322816311,1713359030280,-504.45347544,0.00031867,30]
[322816312,1713359030307,-518.51378252,0.00031867,30]
[322816313,1713359030335,-500.0,0.00031867,30]
[322816314,1713359030362,-506.66329572,0.00031867,30]
[322816315,1713359030390,-504.76676573,0.00031867,30]
[322816316,1713359030419,-500.0,0.00031867,30]
[322816317,1713359030448,-504.8967059,0.00031867,30]
[322816318,1713359030477,-157.12313493,0.00031867,30]
[322816319,1713359030509,-500.0,0.00031867,30]
[322816320,1713359030539,-500.0,0.00031867,30]
[322816321,1713359030569,-511.29412476,0.00031867,30]
[322816322,1713359030598,-506.36807195,0.00031867,30]
[322816323,1713359030627,-422.04395991,0.00031867,30]
[322816324,1713359030655,-500.0,0.00031867,30]
[322816325,1713359030683,-505.57225505,0.00031867,30]
[322816326,1713359030710,-500.0,0.00031867,30]
[322816327,1713359030738,-504.86794511,0.00031867,30]
[322816328,1713359030766,-500.0,0.00031867,30]
[322816329,1713359030795,-500.0,0.00031867,30]
[322816330,1713359030824,-500.0,0.00031867,30]
[322816331,1713359030852,-513.0034442,0.00031867,30]
[322816332,1713359030880,-500.0,0.00031867,30]
[322816333,1713359030910,-500.0,0.00031867,30]
[322816334,1713359030938,-482.79354342,0.00031867,30]
[322816335,1713359030965,-525.22471263,0.00031867,30]
[322816336,1713359030992,-500.0,0.00031867,30]
[322816337,1713359031022,-500.0,0.00031867,30]
[322816338,1713359031050,-523.09761537,0.00031867,30]
[322816339,1713359031077,-500.0,0.00031867,30]
[322816340,1713359031104,-500.0,0.00031867,30]
[322816341,1713359031130,-500.0,0.00031867,30]
[322816342,1713359031158,-500.0,0.00031867,30]
[322816343,1713359031185,-517.40690224,0.00031867,30]
[322816344,1713359031213,-500.0,0.00031867,30]
[322816345,1713359031243,-506.14563698,0.00031867,30]
[322816346,1713359031272,-500.0,0.00031867,30]
[322816347,1713359031300,-500.0,0.00031867,30]
[322816348,1713359031328,-500.0,0.00031867,30]
[322816349,1713359031355,-500.0,0.00031867,30]
[322816350,1713359031384,-500.0,0.00031867,30]
[322816351,1713359031417,-507.20557232,0.00031867,30]
[322816352,1713359031450,-500.0,0.00031867,30]
[322816353,1713359031482,-509.34158682,0.00031867,30]
[322816354,1713359031513,-500.0,0.00031867,30]
[322816355,1713359031547,-500.0,0.00031867,30]
[322816356,1713359031576,-500.0,0.00031867,30]
[322816357,1713359031606,-500.0,0.00031867,30]
[322816358,1713359031636,-548.43287915,0.00031867,30]
[322816359,1713359031670,-521.93853932,0.00031867,30]
[322816360,1713359031699,-500.0,0.00031867,30]
[322816361,1713359031728,-504.40363949,0.00031867,30]
[322816362,1713359031757,-501.51531742,0.00031867,30]
[322816363,1713359031789,-500.0,0.00031867,30]
[322816364,1713359031821,-505.60188997,0.00031867,30]
[322816365,1713359031852,-500.0,0.00031867,30]
[322816366,1713359031882,-500.0,0.00031867,30]
[322816367,1713359031911,-514.72718787,0.00031867,30]
[322816368,1713359031939,-500.0,0.00031867,30]
[322816369,1713359031969,-500.0,0.00031867,30]
[322816370,1713359031998,-525.21748097,0.00031867,30]
[322816371,1713359032027,-897.47,0.00031867,30]
[322816372,1713359032055,-897.47,0.00031867,30]
[322816373,1713359032085,-897.47,0.00031867,30]
[322816374,1713359032288,-897.47,0.00031867,30]
[322816375,1713359032318,-500.0,0.00031867,30]
[322816376,1713359032348,-897.47,0.00031867,30]
[322816377,1713359032377,-505.41179144,0.00031867,30]
[322816378,1713359032411,-897.47,0.00031867,30]
[322816379,1713359032441,-897.47,0.00031867,30]
[322816380,1713359032470,-897.47,0.00031867,30]
[322816381,1713359032500,-897.47,0.00031867,30]
[322816382,1713359032529,-897.47,0.00031867,30]
[322816383,1713359032559,-897.47,0.00031867,30]
[322816384,1713359032589,-897.47,0.00031867,30]
[322816385,1713359032617,-897.47,0.00031867,30]
[322816386,1713359032646,-897.47,0.00031867,30]
[322816387,1713359032676,-897.47,0.00031867,30]
[322816388,1713359032708,-897.47,0.00031867,30]
[322816389,1713359032738,-500.0,0.00031867,30]
[322816390,1713359032766,-897.47,0.00031867,30]
[322816391,1713359032797,-500.0,0.00031867,30]
[322816392,1713359032828,-897.47,0.00031867,30]
[322816393,1713359032859,-506.63051326,0.00031867,30]
[322816394,1713359032891,-897.47,0.00031867,30]
[322816395,1713359032921,-897.47,0.00031867,30]
[322816396,1713359032950,-897.47,0.00031867,30]
[322816397,1713359032979,-897.47,0.00031867,30]
[322816398,1713359033007,-897.47,0.00031867,30]
[322816399,1713359033038,-897.51843173,0.00031867,30]
[322816400,1713359033065,-500.0,0.00031867,30]
[322816401,1713359033093,-500.0,0.00031867,30]
[322816402,1713359033121,-500.0,0.00031867,30]
[322816403,1713359033150,-236.57723639,0.00031867,30]
[322816404,1713359033181,-515.2904216,0.00031867,30]
[322816405,1713359033209,-500.0,0.00031867,30]
[322816406,1713359033238,-504.66453781,0.00031867,30]
[322816407,1713359033266,-504.75319813,0.00031867,30]
[322816408,1713359033295,-500.0,0.00031867,30]
[322816409,1713359033323,-503.40298207,0.00031867,30]
[322816410,1713359033351,-500.0,0.00031867,30]
[322816411,1713359033380,-504.26804701,0.00031867,30]
[322816412,1713359033408,-500.0,0.00031867,30]
[322816413,1713359033440,-508.45488333,0.00031867,30]
[322816414,1713359033471,-500.0,0.00031867,30]
[322816415,1713359033500,-500.0,0.00031867,30]
[322816416,1713359033530,-508.67568902,0.00031867,30]
[322816417,1713359033559,-500.0,0.00031867,30]
[322816418,1713359033590,-503.92996337,0.00031867,30]
[322816419,1713359033619,-505.21764688,0.00031867,30]
[322816420,1713359033648,-500.0,0.00031867,30]